bitfinex/quotes_SOLUSD_20250425
["timestamp","ask_amount","ask_price","bid_price","bid_amount"]
[1745584176207,20.37001043,154.23,154.15,30.14209014]
[1745584176419,23.65490234,154.19,154.15,30.14209014]
[1745584176634,20.37001043,154.23,154.14,30.14236092]
[1745584176635,23.65490234,154.18,154.14,30.14236092]
[1745584176936,23.65490234,154.18,154.14,6.48745858]
[1745584177113,23.65490234,154.18,154.14,30.14236092]
[1745584177526,26.0,154.21,154.12,6.48845055]
[1745584177527,23.65490234,154.17,154.12,6.48845055]
[1745584177702,23.65490234,154.17,154.12,30.14335289]
[1745584177907,23.65490234,154.17,154.13,23.65490234]
[1745584178316,23.65490234,154.17,154.12,6.48845055]
[1745584178543,23.65490234,154.17,154.13,23.65490234]
[1745584178711,37.93490234,154.18,154.13,23.65490234]
[1745584178912,23.65490234,154.17,154.11,6.51887158]
[1745584179214,23.65490234,154.15,154.11,6.51887158]
[1745584179817,23.65490234,154.14,154.11,0.03]
[1745584180024,23.65490234,154.13,154.11,0.03]
[1745584180238,18.79181043,154.17,154.11,0.03]
[1745584180539,40.28,154.18,154.11,0.03]
[1745584180540,23.65490234,154.12,154.11,0.03]
[1745584180708,23.65490234,154.12,154.1,0.03]
[1745584180709,86.61391511,154.12,154.1,0.03]
[1745584180914,86.61391511,154.12,154.05,79.883025]
[1745584180915,23.65490234,154.06,154.05,79.883025]
[1745584181110,37.93490234,154.06,154.05,79.883025]
[1745584181312,56.72671277,154.06,154.05,79.883025]
[1745584181525,37.93490234,154.06,154.05,79.883025]
[1745584181728,23.65490234,154.06,154.05,79.883025]
[1745584181906,23.65490234,154.06,154.05,86.37442389]
[1745584182114,14.28,154.08,154.05,86.37442389]
[1745584182417,23.65490234,154.06,154.05,86.37442389]
[1745584182621,23.65490234,154.06,154.05,79.883025]
[1745584182820,14.28,154.08,154.05,79.883025]
[1745584183030,14.28,154.08,154.06,23.65490234]
[1745584183335,14.28,154.08,154.05,86.37442389]
[1745584183336,14.28,154.08,154.07,23.65490234]
[1745584183922,202.36,154.11,154.07,23.65490234]
[1745584184846,202.36,154.11,154.08,23.65490234]
[1745584185049,202.36,154.11,154.09,6.4897138]
[1745584185743,14.28,154.13,154.1,23.65490234]
[1745584185934,12.48,154.13,154.12,23.65490234]
[1745584186349,14.28,154.18,154.12,23.65490234]
[1745584186533,14.28,154.18,154.16,23.65490234]
[1745584186854,14.28,154.18,154.15,23.65490234]
[1745584187036,14.28,154.18,154.16,6.48676699]
[1745584187232,37.93490234,154.18,154.13,23.65490234]
[1745584187435,14.28,154.18,154.16,23.65490234]
[1745584188448,14.28,154.18,154.15,23.65490234]
[1745584188749,37.93490234,154.18,154.14,23.65490234]
[1745584189158,37.93490234,154.18,154.15,6.4871878]
[1745584189535,23.65490234,154.17,154.13,30.14293192]
[1745584189750,37.93490234,154.18,154.14,23.65490234]
[1745584190138,37.93490234,154.18,154.13,6.48802958]
[1745584190355,37.93490234,154.18,154.13,30.14293192]
[1745584190743,37.93490234,154.18,154.14,23.65490234]
[1745584191146,37.93490234,154.18,154.13,30.14293192]
[1745584192051,37.93490234,154.18,154.14,23.65490234]
[1745584192241,14.28,154.18,154.14,23.65490234]
[1745584192446,14.28,154.18,154.15,23.65490234]
[1745584193471,14.28,154.18,154.15,30.14176575]
[1745584194358,14.28,154.18,154.16,23.65490234]
[1745584194585,14.28,154.18,154.17,23.65490234]
[1745584195167,0.063,154.2,154.17,23.65490234]
[1745584195344,0.063,154.2,154.19,23.65490234]
[1745584196161,1e-08,154.2,154.19,23.65490234]
[1745584196462,40.0604604,154.4,154.19,23.65490234]
[1745584196463,25.29080234,154.38,154.24,18.79181043]
[1745584196667,6.4436,154.39,154.34,23.65490234]
[1745584196858,31.23598948,154.42,154.32,23.65490234]
[1745584197046,23.65490234,154.4,154.35,23.65490234]
[1745584197247,23.65490234,154.4,154.27,1.29571205]
[1745584197248,23.65490234,154.4,154.36,23.65490234]
[1745584197456,31.23598948,154.42,154.36,30.13326461]
[1745584197762,54.89089182,154.42,154.36,30.13326461]
[1745584198066,54.89089182,154.42,154.37,23.65490234]
[1745584198475,37.93490234,154.43,154.38,23.65490234]
[1745584198650,14.28,154.43,154.4,23.65490234]
[1745584199158,23.65490234,154.42,154.37,23.65490234]
[1745584199359,14.28,154.43,154.4,30.13124469]
[1745584199671,23.65490234,154.41,154.37,6.4779426]
[1745584199852,23.65490234,154.42,154.38,23.65490234]
[1745584200163,14.28,154.43,154.4,23.65490234]
[1745584200554,14.28,154.43,154.37,22.67279911]
[1745584200555,23.65490234,154.41,154.37,6.4779426]
[1745584200755,23.65490234,154.41,154.37,30.13284494]
[1745584200946,14.28,154.43,154.39,23.65490234]
[1745584201166,14.28,154.43,154.4,23.65490234]
[1745584201366,0.063,154.45,154.42,23.65490234]
[1745584201661,0.063,154.45,154.42,30.1305282]
[1745584202083,0.063,154.45,154.43,23.65490234]
[1745584202253,0.063,154.44,154.43,23.65490234]
[1745584202681,0.063,154.44,154.42,30.1305282]
[1745584203183,0.063,154.44,154.43,23.65490234]
[1745584203358,0.063,154.44,154.42,23.65490234]
[1745584203556,0.063,154.44,154.41,23.65490234]
[1745584204165,23.65490234,154.43,154.36,22.67426794]
[1745584204380,0.063,154.44,154.4,23.65490234]
[1745584204381,23.71790234,154.44,154.4,23.65490234]
[1745584204579,0.063,154.44,154.42,23.65490234]
[1745584204785,0.063,154.44,154.43,23.65490234]
[1745584205171,0.063,154.44,154.43,30.13032809]
[1745584206259,1e-08,154.44,154.43,30.13032809]
[1745584206462,1e-08,154.45,154.43,30.13032809]
[1745584206787,1e-08,154.45,154.44,23.65490234]
[1745584207374,1e-08,154.45,154.44,30.12990881]
[1745584207578,0.063,154.51,154.44,78.69245736]
[1745584207786,0.063,154.51,154.49,23.65490234]
[1745584208282,23.71790234,154.51,154.44,22.66252265]
[1745584208485,23.65490234,154.5,154.46,23.65490234]
[1745584208862,0.063,154.51,154.48,23.65490234]
[1745584209356,0.063,154.51,154.5,6.4724919]
[1745584209556,0.063,154.51,154.49,30.12774664]
[1745584209978,0.063,154.51,154.41,1.29481215]
[1745584209979,23.71790234,154.51,154.48,6.47325747]
[1745584210392,23.71790234,154.51,154.47,30.1284725]
[1745584211462,0.063,154.51,154.47,30.1284725]
[1745584211667,0.063,154.51,154.5,23.65490234]
[1745584212688,0.063,154.51,154.47,6.47357016]
[1745584213189,0.063,154.51,154.47,30.1284725]
[1745584213396,0.063,154.51,154.49,6.47291086]
[1745584213576,0.063,154.51,154.47,30.12823657]
[1745584214079,0.063,154.51,154.47,6.47333423]
[1745584214389,0.063,154.51,154.47,30.12823657]
[1745584214592,23.71790234,154.51,154.47,30.12823657]
[1745584214797,23.71790234,154.51,154.47,6.47333423]
[1745584215686,23.71790234,154.51,154.47,30.12823657]
[1745584215871,0.063,154.51,154.47,30.12823657]
[1745584216509,23.71790234,154.51,154.41,17.48411602]
[1745584216728,23.71790234,154.51,154.35,12.64998198]
[1745584216729,23.65490234,154.43,154.35,12.64998198]
[1745584216899,23.65490234,154.42,154.36,30.0]
[1745584217222,23.65490234,154.44,154.39,23.65490234]
[1745584217421,23.65490234,154.43,154.39,6.47710343]
[1745584217985,23.65490234,154.43,154.39,46.32476436]
[1745584218298,37.89490234,154.45,154.39,22.66986202]
[1745584218497,23.65490234,154.44,154.39,46.32476436]
[1745584218682,23.63490234,154.43,154.39,22.66986202]
[1745584218886,23.63490234,154.43,154.39,46.32476436]
[1745584219086,23.63490234,154.43,154.39,6.47710343]
[1745584219891,23.65490234,154.42,154.39,6.47710343]
[1745584220497,23.65490234,154.41,154.34,6.47920176]
[1745584220706,23.65490234,154.41,154.36,23.65490234]
[1745584220883,1.5621,154.43,154.34,22.67720616]
[1745584221092,23.65490234,154.4,154.35,23.65490234]
[1745584221398,23.65490234,154.4,154.36,23.65490234]
[1745584221708,23.65490234,154.41,154.37,6.4779426]
[1745584221901,23.65490234,154.41,154.37,30.13284494]
[1745584222490,23.65490234,154.41,154.37,46.32770145]
[1745584222692,25.21700234,154.43,154.38,23.65490234]
[1745584222899,23.65490234,154.44,154.39,23.65490234]
[1745584223104,23.65490234,154.43,154.39,23.65490234]
[1745584223606,33.03181043,154.45,154.4,6.47668393]
[1745584223817,23.65490234,154.45,154.4,30.13158627]
[1745584224019,23.65490234,154.45,154.4,6.47668393]
[1745584224218,23.65490234,154.45,154.4,30.13158627]
[1745584224398,37.89490234,154.46,154.41,23.65490234]
[1745584224718,23.65490234,154.44,154.4,30.13158627]
[1745584224902,23.65490234,154.43,154.4,6.47668393]
[1745584225815,23.65490234,154.42,154.4,6.47668393]
[1745584226325,23.65490234,154.41,154.34,22.67640116]
[1745584226511,23.65490234,154.39,154.35,23.65490234]
[1745584226714,23.65490234,154.36,154.34,6.47920176]
[1745584226902,1.5621,154.39,154.34,6.47920176]
[1745584226903,23.65490234,154.35,154.34,6.47920176]
[1745584227110,23.65490234,154.35,154.33,6.50952256]
[1745584227507,23.65490234,154.36,154.33,6.50952256]
[1745584227928,23.65490234,154.35,154.33,6.50952256]
[1745584228105,1.5621,154.39,154.34,23.65490234]
[1745584228306,14.24,154.4,154.36,23.65490234]
[1745584228307,37.89490234,154.4,154.36,23.65490234]
[1745584228518,23.65490234,154.39,154.35,23.65490234]
[1745584229025,23.65490234,154.36,154.33,6.50952256]
[1745584229226,23.65490234,154.34,154.33,6.50952256]
[1745584229595,23.65490234,154.37,154.33,30.1644249]
[1745584230224,23.65490234,154.37,154.33,6.50952256]
[1745584230729,23.65490234,154.36,154.33,6.50952256]
[1745584231121,37.89490234,154.4,154.33,0.03]
[1745584231122,23.65490234,154.35,154.33,0.03]
[1745584231331,23.65490234,154.34,154.33,0.03]
[1745584232525,37.89490234,154.34,154.33,0.03]
[1745584232730,56.68671277,154.34,154.33,0.03]
[1745584234212,14.24,154.34,154.33,0.03]
[1745584234518,37.89490234,154.34,154.33,0.03]
[1745584235419,82.68671277,154.34,154.33,0.03]
[1745584236036,112.48761511,154.34,154.33,0.03]
[1745584236211,86.48761511,154.34,154.24,6.51340248]
[1745584236416,23.65490234,154.26,154.24,6.51340248]
[1745584236836,23.65490234,154.26,154.24,0.03]
[1745584237022,18.79181043,154.3,154.24,0.03]
[1745584237023,23.65490234,154.25,154.24,0.03]
[1745584237609,15.8069,154.28,154.24,23.68490234]
[1745584237610,14.26,154.28,154.24,23.68490234]
[1745584237818,14.26,154.28,154.25,23.65490234]
[1745584238234,14.26,154.28,154.26,23.65490234]
[1745584238633,14.26,154.28,154.27,23.65490234]
[1745584238833,14.26,154.28,154.25,6.48287931]
[1745584239039,14.26,154.28,154.25,30.13778165]
[1745584239946,37.91490234,154.28,154.25,6.48287931]
[1745584240149,23.65490234,154.27,154.25,6.48287931]
[1745584240327,27.6148,154.32,154.25,30.13778165]
[1745584240649,23.65490234,154.33,154.29,23.65490234]
[1745584240828,14.26,154.35,154.29,23.65490234]
[1745584241028,23.65490234,154.31,154.27,23.65490234]
[1745584241255,23.65490234,154.3,154.26,23.65490234]
[1745584241551,23.65490234,154.32,154.28,23.65490234]
[1745584241750,40.26,154.35,154.29,23.65490234]
[1745584241951,23.65490234,154.31,154.27,23.65490234]
[1745584242135,23.65490234,154.3,154.26,23.65490234]
[1745584242475,23.65490234,154.31,154.27,6.48214169]
[1745584242634,40.26,154.35,154.29,23.65490234]
[1745584242841,23.65490234,154.32,154.27,46.34239827]
[1745584243137,23.65490234,154.29,154.27,6.48214169]
[1745584243337,23.65490234,154.28,154.25,6.48298217]
[1745584243531,23.65490234,154.29,154.25,6.48298217]
[1745584243730,23.65490234,154.3,154.26,23.65490234]
[1745584243928,23.65490234,154.32,154.28,23.65490234]
[1745584244127,23.65490234,154.32,154.25,22.69043759]
[1745584244128,23.65490234,154.3,154.25,22.69043759]
[1745584244450,14.40216157,154.35,154.25,22.69043759]
[1745584244451,23.65490234,154.29,154.25,22.69043759]
[1745584244658,18.64964886,154.31,154.24,6.51334129]
[1745584244966,23.65490234,154.25,154.24,6.51334129]
[1745584245452,23.65490234,154.26,154.24,6.51334129]
[1745584245841,23.65490234,154.27,154.24,6.51334129]
[1745584246043,23.65490234,154.26,154.24,6.51334129]
[1745584246269,23.65490234,154.25,154.24,6.51334129]
[1745584246468,23.65490234,154.25,154.24,0.03]
[1745584247569,42.44671277,154.25,154.24,0.03]
[1745584247764,66.10161511,154.25,154.24,0.03]
[1745584247970,23.65490234,154.25,154.24,0.03]
[1745584249960,23.65490234,154.26,154.24,0.03]
[1745584250162,14.24,154.28,154.24,0.03]
[1745584250500,23.65490234,154.26,154.24,0.03]
[1745584250878,23.65490234,154.25,154.24,0.03]
[1745584251287,23.65490234,154.27,154.24,0.03]
[1745584251462,23.65490234,154.26,154.24,0.03]
[1745584252487,23.65490234,154.25,154.24,0.03]
[1745584252696,23.65490234,154.26,154.24,0.03]
[1745584255186,23.65490234,154.27,154.24,0.03]
[1745584255695,23.65490234,154.26,154.24,0.03]
[1745584256996,23.65490234,154.25,154.24,0.03]
[1745584258169,14.26,154.28,154.24,0.03]
[1745584258375,23.65490234,154.26,154.24,0.03]
[1745584259698,23.65490234,154.25,154.24,0.03]
[1745584260996,42.44671277,154.25,154.24,0.03]
[1745584262012,66.10161511,154.25,154.24,0.03]
[1745584263406,14.26,154.28,154.24,0.03]
[1745584263792,14.26,154.28,154.25,23.65490234]
[1745584263983,15.9139,154.33,154.26,23.65490234]
[1745584264184,23.65490234,154.31,154.26,23.65490234]
[1745584264380,23.65490234,154.29,154.25,23.65490234]
[1745584264699,22.39353341,154.33,154.24,0.03]
[1745584264700,23.65490234,154.28,154.24,0.03]
[1745584264900,23.65490234,154.28,154.24,23.68490234]
[1745584265595,23.65490234,154.28,154.24,0.03]
[1745584265902,23.65490234,154.28,154.24,23.68490234]
[1745584266410,23.65490234,154.29,154.24,23.68490234]
[1745584266985,23.65490234,154.3,154.26,23.65490234]
[1745584267411,26.0,154.32,154.26,23.65490234]
[1745584267412,23.65490234,154.31,154.26,23.65490234]
[1745584267717,26.0,154.32,154.25,6.48298217]
[1745584267718,14.26,154.33,154.28,23.65490234]
[1745584268003,14.26,154.33,154.29,23.65490234]
[1745584268306,37.91490234,154.33,154.28,23.65490234]
[1745584268513,37.91490234,154.33,154.29,23.65490234]
[1745584269087,37.91490234,154.33,154.3,23.65490234]
[1745584269088,14.26,154.33,154.3,23.65490234]
[1745584269304,37.91490234,154.33,154.29,30.1357877]
[1745584269721,23.65490234,154.32,154.28,30.13647163]
[1745584269912,37.91490234,154.33,154.29,23.65490234]
[1745584270127,14.26,154.33,154.3,23.65490234]
[1745584270504,10.38058974,154.36,154.32,23.65490234]
[1745584270706,10.38058974,154.36,154.33,23.65490234]
[1745584270905,37.91490234,154.38,154.33,23.65490234]
[1745584271095,37.91490234,154.38,154.33,30.13439942]
[1745584271290,23.65490234,154.37,154.33,30.13439942]
[1745584271510,23.65490234,154.37,154.33,23.65490234]
[1745584271811,14.26,154.38,154.33,30.13448876]
[1745584271990,37.91490234,154.38,154.33,30.13448876]
[1745584272190,14.26,154.38,154.35,23.65490234]
[1745584273197,14.26,154.38,154.35,30.13364201]
[1745584273808,0.063,154.4,154.35,6.47873967]
[1745584273995,0.063,154.4,154.37,23.65490234]
[1745584274191,0.063,154.4,154.39,23.65490234]
[1745584275094,0.063,154.4,154.39,30.13200577]
[1745584276596,0.063,154.4,154.39,23.65490234]
[1745584276796,0.063,154.4,154.38,23.65490234]
[1745584277109,0.063,154.4,154.37,13.09152441]
[1745584277110,0.063,154.4,154.39,23.65490234]
[1745584279816,23.71790234,154.4,154.33,6.47962159]
[1745584280001,23.65490234,154.34,154.3,6.48088139]
[1745584280203,23.65490234,154.33,154.3,6.48088139]
[1745584280407,18.79181043,154.38,154.3,6.48088139]
[1745584280587,23.65490234,154.34,154.3,6.48088139]
[1745584280793,23.65490234,154.33,154.3,6.48088139]
[1745584281317,18.79181043,154.38,154.28,6.48139169]
[1745584281516,23.65490234,154.33,154.28,30.13629403]
[1745584282013,23.65490234,154.32,154.28,6.48139169]
[1745584282515,23.65490234,154.31,154.27,6.48208517]
[1745584282825,23.65490234,154.28,154.25,6.48284156]
[1745584283208,23.65490234,154.28,154.24,6.51324472]
[1745584283528,23.65490234,154.27,154.24,6.51324472]
[1745584283721,23.65490234,154.27,154.24,0.03]
[1745584283933,23.65490234,154.27,154.24,6.51335607]
[1745584284104,13.93985934,154.27,154.24,6.51335607]
[1745584285130,14.24,154.29,154.26,23.65490234]
[1745584286022,14.24,154.29,154.27,6.48214169]
[1745584286401,1.5817,154.38,154.28,23.65490234]
[1745584286607,32.88964886,154.37,154.28,23.65490234]
[1745584286816,32.88964886,154.37,154.27,22.68749593]
[1745584286817,23.65490234,154.31,154.27,30.13704403]
[1745584287002,23.65490234,154.31,154.27,6.48214169]
[1745584288101,23.65490234,154.29,154.27,6.48214169]
[1745584288303,18.64964886,154.33,154.27,6.48214169]
[1745584288626,23.65490234,154.31,154.27,6.48214169]
[1745584289125,23.65490234,154.32,154.27,30.13704403]
[1745584289321,23.65490234,154.31,154.27,22.68749593]
[1745584289528,23.65490234,154.32,154.27,46.34239827]
[1745584289724,23.65490234,154.33,154.29,23.65490234]
[1745584289915,23.65490234,154.35,154.31,6.4804614]
[1745584290336,14.24,154.37,154.3,6.48073912]
[1745584290337,23.65490234,154.33,154.3,6.48073912]
[1745584290639,23.65490234,154.31,154.27,30.13704403]
[1745584290946,23.65490234,154.29,154.25,6.48298217]
[1745584291235,23.65490234,154.3,154.26,23.65490234]
[1745584291527,14.24,154.31,154.28,23.65490234]
[1745584291830,14.24,154.31,154.3,23.65490234]
[1745584292037,23.65490234,154.35,154.31,6.4804614]
[1745584292709,37.89490234,154.36,154.31,30.13536374]
[1745584293029,23.71790234,154.4,154.35,23.65490234]
[1745584293512,23.65490234,154.39,154.34,23.65490234]
[1745584294022,23.65490234,154.37,154.31,22.68161492]
[1745584294207,0.063,154.4,154.33,23.65490234]
[1745584294408,23.65490234,154.36,154.32,23.65490234]
[1745584295410,23.65490234,154.35,154.31,6.4804614]
[1745584295908,23.65490234,154.38,154.33,23.65490234]
[1745584296107,14.303,154.4,154.35,23.65490234]
[1745584296733,23.65490234,154.39,154.35,23.65490234]
[1745584296935,23.65490234,154.37,154.34,6.47920176]
[1745584297231,14.303,154.4,154.34,30.1341041]
[1745584297428,23.65490234,154.38,154.34,30.1341041]
[1745584297724,14.303,154.4,154.34,30.1341041]
[1745584297725,23.65490234,154.37,154.34,6.47920176]
[1745584297917,23.65490234,154.35,154.29,6.48130144]
[1745584298110,23.65490234,154.34,154.28,22.68550037]
[1745584298318,23.65490234,154.34,154.3,23.65490234]
[1745584299229,23.65490234,154.35,154.3,23.65490234]
[1745584299437,23.65490234,154.35,154.28,22.68550037]
[1745584299608,23.65490234,154.35,154.3,23.65490234]
[1745584299809,0.14216157,154.39,154.31,23.65490234]
[1745584300136,23.65490234,154.35,154.31,23.65490234]
[1745584300319,23.65490234,154.36,154.32,6.48004147]
[1745584300712,23.65490234,154.35,154.29,6.48130144]
[1745584300911,18.64964886,154.39,154.31,23.65490234]
[1745584301108,23.65490234,154.35,154.31,23.65490234]
[1745584301614,26.0,154.37,154.31,23.65490234]
[1745584301815,23.65490234,154.36,154.31,23.65490234]
[1745584302216,26.0,154.37,154.32,6.48004147]
[1745584302418,26.0,154.37,154.32,30.13494381]
[1745584302619,23.65490234,154.36,154.32,6.48004147]
[1745584303141,0.063,154.4,154.34,6.4204]
[1745584303363,0.063,154.4,154.39,23.65490234]
[1745584304143,0.063,154.4,154.39,30.13200577]
[1745584304442,0.063,154.4,154.39,31.42699843]
[1745584304738,0.063,154.4,154.39,30.13200577]
[1745584306375,0.063,154.4,154.39,6.47710343]
[1745584307452,0.063,154.4,154.39,30.13200577]
[1745584307772,0.063,154.4,154.38,30.13226772]
[1745584307939,0.063,154.4,154.38,6.47736538]
[1745584308140,0.063,154.4,154.38,30.13226772]
[1745584308648,23.65490234,154.39,154.33,16.19842039]
[1745584308842,23.65490234,154.37,154.34,6.47920176]
[1745584309248,23.65490234,154.35,154.33,6.47947868]
[1745584309441,23.65490234,154.36,154.33,6.47947868]
[1745584309755,1.695,154.4,154.33,6.47947868]
[1745584309936,23.65490234,154.39,154.34,23.65490234]
[1745584310453,1.695,154.4,154.35,46.33063929]
[1745584310454,0.063,154.4,154.35,46.33063929]
[1745584310671,23.71790234,154.4,154.35,46.33063929]
[1745584310977,23.65490234,154.39,154.35,22.67573695]
[1745584311335,0.063,154.4,154.35,6.47878198]
[1745584311533,23.65490234,154.39,154.35,6.47878198]
[1745584312034,23.71790234,154.4,154.35,47.6260668]
[1745584312658,23.71790234,154.4,154.36,23.65490234]
[1745584313041,0.063,154.4,154.37,23.65490234]
[1745584313243,0.063,154.4,154.38,23.65490234]
[1745584313648,0.063,154.4,154.39,23.65490234]
[1745584314843,0.063,154.4,154.39,30.13200577]
[1745584315770,0.063,154.4,154.39,6.47710343]
[1745584317041,23.71790234,154.4,154.35,6.47878198]
[1745584317365,23.65490234,154.39,154.35,22.67573695]
[1745584317599,23.65490234,154.39,154.35,46.33063929]
[1745584317734,23.71790234,154.4,154.35,46.33063929]
[1745584318352,0.063,154.4,154.36,23.65490234]
[1745584318878,0.063,154.4,154.37,23.65490234]
[1745584319089,0.063,154.4,154.38,6.47752299]
[1745584320979,0.063,154.4,154.39,24.95006781]
[1745584321986,1e-08,154.4,154.39,24.95006781]
[1745584322961,1e-08,154.4,154.39,31.42717124]
[1745584323169,1e-08,154.4,154.39,55.08207358]
[1745584323470,1e-08,154.43,154.39,82.86943515]
[1745584323676,0.063,154.45,154.42,49.65490234]
[1745584323677,1e-08,154.45,154.42,49.65490234]
[1745584323892,1e-08,154.45,154.44,23.65490234]
[1745584324858,1e-08,154.45,154.44,30.12990881]
[1745584325294,1e-08,154.47,154.44,46.31742499]
[1745584325502,1e-08,154.47,154.46,23.65490234]
[1745584327102,0.063,154.51,154.46,78.68533091]
[1745584327268,0.063,154.51,154.5,23.65490234]
[1745584327780,0.063,154.51,154.5,24.94888973]
[1745584328292,0.063,154.53,154.5,24.94888973]
[1745584328488,0.063,154.53,154.52,23.65490234]
[1745584328792,1e-08,154.53,154.52,23.65490234]
[1745584329016,1e-08,154.53,154.52,30.12655649]
[1745584329225,1e-08,154.53,154.52,31.42029023]
[1745584329708,1e-08,154.54,154.52,31.42029023]
[1745584329889,1e-08,154.54,154.53,23.65490234]
[1745584330998,0.063,154.56,154.54,6.47081661]
[1745584330999,1e-08,154.56,154.54,6.47081661]
[1745584331199,0.063,154.58,154.55,62.96536443]
[1745584331200,1e-08,154.58,154.55,62.96536443]
[1745584331507,1e-08,154.58,154.57,23.65490234]
[1745584332996,1e-08,154.58,154.57,31.41785376]
[1745584333400,1e-08,154.58,154.57,31.56001533]
[1745584334289,0.063,154.67,154.6,26.0]
[1745584334591,0.063,154.67,154.61,1.29293295]
[1745584334785,0.063,154.67,154.58,1.43513734]
[1745584334786,23.65490234,154.65,154.58,1.43513734]
[1745584334990,0.063,154.67,154.6,30.12287569]
[1745584334991,23.65490234,154.64,154.6,30.12287569]
[1745584335294,23.65490234,154.66,154.61,24.94820265]
[1745584335598,0.063,154.67,154.64,23.65490234]
[1745584335799,0.063,154.67,154.65,23.65490234]
[1745584336314,0.063,154.67,154.61,27.29330031]
[1745584336315,0.063,154.67,154.66,23.65490234]
[1745584336912,0.063,154.67,154.65,1.29284802]
[1745584337112,0.063,154.67,154.66,23.65490234]
[1745584337338,0.063,154.67,154.62,0.14216157]
[1745584337339,0.063,154.67,154.64,6.46627988]
[1745584337640,0.063,154.67,154.65,23.65490234]
[1745584337842,0.063,154.67,154.66,23.65490234]
[1745584339215,0.063,154.67,154.66,30.12069827]
[1745584339418,0.063,154.67,154.65,30.12110096]
[1745584340047,23.71790234,154.67,154.63,23.65490234]
[1745584340214,23.71790234,154.67,154.63,30.12182452]
[1745584340636,23.65490234,154.64,154.6,6.4683053]
[1745584340961,23.65490234,154.63,154.59,6.4686544]
[1745584341159,23.65490234,154.63,154.59,30.12355674]
[1745584341319,23.65490234,154.64,154.59,30.12355674]
[1745584342145,23.65490234,154.65,154.6,23.65490234]
[1745584342511,23.65490234,154.64,154.6,23.65490234]
[1745584343006,23.65490234,154.63,154.59,6.4686544]
[1745584343222,23.65490234,154.63,154.59,30.12355674]
[1745584346236,40.263,154.67,154.59,30.12355674]
[1745584346448,40.263,154.67,154.6,23.65490234]
[1745584346649,40.263,154.67,154.61,23.65490234]
[1745584346849,23.65490234,154.65,154.62,6.46746863]
[1745584347032,23.65490234,154.65,154.61,30.1226953]
[1745584347226,23.65490234,154.65,154.61,6.46779296]
[1745584347550,23.65490234,154.64,154.6,30.1230697]
[1745584349460,23.65490234,154.63,154.59,31.41674241]
[1745584349632,23.65490234,154.63,154.59,30.1235156]
[1745584349961,18.64964886,154.66,154.59,30.1235156]
[1745584349962,23.65490234,154.62,154.59,6.46861326]
[1745584350268,23.65490234,154.61,154.56,1.29327164]
[1745584350432,23.65490234,154.58,154.54,23.65490234]
[1745584350636,23.65490234,154.55,154.53,6.47123535]
[1745584350855,23.65490234,154.56,154.53,6.47123535]
[1745584351063,18.64964886,154.6,154.53,6.47123535]
[1745584351363,23.65490234,154.59,154.55,23.65490234]
[1745584351570,23.65490234,154.58,154.53,46.30422608]
[1745584351866,14.2,154.61,154.53,46.30422608]
[1745584351867,23.65490234,154.57,154.53,30.12613769]
[1745584352241,23.65490234,154.59,154.54,23.65490234]
[1745584352439,23.65490234,154.59,154.53,6.47123535]
[1745584352440,23.65490234,154.59,154.55,23.65490234]
[1745584352749,23.65490234,154.57,154.53,30.12613769]
[1745584353255,23.65490234,154.58,154.54,23.65490234]
[1745584353444,23.65490234,154.58,154.54,30.12545875]
[1745584353644,23.65490234,154.57,154.54,6.47055641]
[1745584353960,40.2,154.61,154.54,30.12545875]
[1745584354269,23.65490234,154.59,154.54,30.12545875]
[1745584354862,23.65490234,154.6,154.55,23.65490234]
[1745584355058,8.0893,154.64,154.59,23.65490234]
[1745584355366,8.0893,154.64,154.61,14.72353009]
[1745584355535,0.063,154.67,154.62,6.46746863]
[1745584355730,26.063,154.67,154.62,21.19099872]
[1745584355968,14.72353009,154.66,154.62,21.19099872]
[1745584356343,14.72353009,154.65,154.62,6.46746863]
[1745584357373,23.55501828,154.65,154.62,6.46746863]
[1745584357667,18.71264886,154.67,154.61,30.02281998]
[1745584357866,23.55501828,154.65,154.61,30.02281998]
[1745584359055,23.55501828,154.65,154.61,6.4678017]
[1745584359575,18.71264886,154.67,154.61,30.02281998]
[1745584360249,23.55501828,154.66,154.61,30.02281998]
[1745584360448,23.55501828,154.65,154.61,6.4678017]
[1745584360667,18.71264886,154.67,154.61,6.4678017]
[1745584360843,23.55501828,154.65,154.61,6.4678017]
[1745584363370,23.55501828,154.62,154.57,30.02457899]
[1745584363691,23.55501828,154.6,154.57,6.46956071]